[Event "FIDE Chesscom Grand Swiss 2019"]
[Site "Douglas-Isle of Man"]
[Date "2019.10.19"]
[Round "9.8"]
[White "Vovk, Andriy"]
[Black "Ganguly, Surya Shekhar"]
[Result "1/2-1/2"]
[ECO "C07"]
[WhiteElo "2618"]
[BlackElo "2658"]
[Annotator "RC"]
[PlyCount "113"]
[EventDate "2019.10.10"]
[EventType "swiss"]
[EventCountry "GBR"]
[SourceTitle "playchess.com"]
[Source "ChessBase"]
[SourceQuality "1"]
[TimeControl "40/6000+30:20/3000+30:900+30"]

1. e4 {[%emt 0:05:58]} e6 {[%emt 0:00:00]} 2. d4 {[%emt 0:00:28]} d5 {[%emt 0:00:00]} 3. Nd2 {[%emt 0:00:28]} c5 {[%emt 0:00:00]} 4. exd5 {[%emt 0:01:11]} Qxd5 {[%emt 0:00:06]} 5. Ngf3 {[%emt 0:00:55]} cxd4 {[%emt 0:00:09]} 6. Bc4 {[%emt 0:00:14]} Qd7 {[%emt 0:00:23]} 7. O-O {[%emt 0:01:26]} Nc6 {[%emt 0:00:21]} 8. Nb3 {[%emt 0:01:50]} a6 {[%emt 0:00:08]} 9. Nbxd4 {[%emt 0:00:48]} Nxd4 {[%emt 0:00:08]} 10. Nxd4 {[%emt 0:00:07]} Qc7 {[%emt 0:00:05]} 11. Bd3 {[%emt 0:03:27]} Bd6 {[%emt 0:00:21]} 12. h3 {[%emt 0:01:00]} Ne7 {[%emt 0:01:51]} 13. Qh5 {[%emt 0:07:13]} Bd7 {[%emt 0:10:30]} 14. Re1 {[%emt 0:08:26]} Qc5 {[%emt 0:02:41]} 15. Qxc5 {[%emt 0:07:32]} Bxc5 {[%emt 0:00:11]} 16. Be3 {[%emt 0:00:18]} Bd6 {[%emt 0:08:20]} 17. Rad1 {[%emt 0:11:06]} O-O-O {[%emt 0:03:58]} 18. Be4 {[%emt 0:05:37]} h6 {[%emt 0:11:58]} 19. Bf3 {[%emt 0:15:05]} Ba4 {[%emt 0:04:03]} 20. b3 {[%emt 0:05:41]} Bd7 {[%emt 0:01:00]} 21. c3 {[%emt 0:00:06]} Kc7 {[%emt 0:03:36]} 22. Kf1 {[%emt 0:02:57]} Rhe8 {[%emt 0:10:29]} 23. Bh5 {[%emt 0:05:46]} Rf8 {[%emt 0:04:42]} 24. Bf3 {[%emt 0:00:47]} e5 {[%emt 0:17:20]} 25. Nc2 {[%emt 0:01:02]} f5 {[%emt 0:01:57]} 26. Bb6+ {[%emt 0:03:41]} Kxb6 {[%emt 0:00:09]} 27. Rxd6+ {[%emt 0:00:01]} Kc7 {[%emt 0:00:33]} 28. Rdd1 {[%emt 0:00:12]} e4 {[%emt 0:00:46]} 29. Be2 {[%emt 0:00:41]} Bc8 {[%emt 0:01:44]} 30. c4 {[%emt 0:01:22]} Ng8 {[%emt 0:07:00]} 31. Bh5 {[%emt 0:13:15]} g5 {[%emt 0:01:54]} 32. Nd4 {[%emt 0:03:45]} Rd6 {[%emt 0:01:57]} 33. Rd2 {[%emt 0:01:08]} Nf6 {[%emt 0:00:58]} 34. Be2 {[%emt 0:00:29]} f4 {[%emt 0:03:01]} 35. Red1 {[%emt 0:00:19]} Rdd8 {[%emt 0:00:20]} 36. Kg1 {[%emt 0:00:58]} h5 {[%emt 0:03:27]} 37. Nc2 {[%emt 0:00:26]} b6 {[%emt 0:01:18]} 38. b4 {[%emt 0:01:11]} Rxd2 {[%emt 0:01:22]} 39. Rxd2 {[%emt 0:00:03]} Rd8 {[%emt 0:00:08]} 40. Nd4 {[%emt 0:00:34]} g4 {[%emt 0:07:55]} 41. hxg4 {[%emt 0:04:07]} hxg4 {[%emt 0:03:03]} 42. c5 {[%emt 0:02:48]} bxc5 {[%emt 0:02:13]} 43. bxc5 {[%emt 0:00:04]} Rd5 {[%emt 0:00:56]} 44. Nb3 {[%emt 0:02:55]} Rxd2 {[%emt 0:03:06]} 45. Nxd2 {[%emt 0:00:04]} Kc6 {[%emt 0:01:56]} 46. Nb3 {[%emt 0:00:37]} Kd5 {[%emt 0:01:06]} 47. f3 {[%emt 0:03:42]} exf3 {[%emt 0:05:41]} 48. gxf3 {[%emt 0:00:34]} g3 {[%emt 0:00:06]} 49. Bd3 {[%emt 0:01:03]} Ke5 {[%emt 0:01:19]} 50. c6 {[%emt 0:04:29]} Kd5 {[%emt 0:04:43]} 51. c7 {[%emt 0:01:32]} Ne8 {[%emt 0:00:44]} 52. Be4+ {[%emt 0:03:23]} Ke5 {[%emt 0:00:11]} 53. Nc5 {[%emt 0:07:46]} Kd4 {[%emt 0:01:44]} 54. Nd3 {[%emt 0:00:28]} Ke3 {[%emt 0:00:06]} 55. Ne1 {[%emt 0:00:06]} Kd4 {[%emt 0:05:05]} 56. Nd3 {[%emt 0:00:17]} Ke3 {[%emt 0:00:21]} 57. Ne1 {[%emt 0:00:05]} 1/2-1/2

[Event "FIDE Chesscom Grand Swiss 2019"]
[Site "Douglas-Isle of Man"]
[Date "2019.10.19"]
[Round "9.9"]
[White "Erdos, Viktor"]
[Black "Sarana, Alexey"]
[Result "1/2-1/2"]
[ECO "B51"]
[WhiteElo "2604"]
[BlackElo "2655"]
[Annotator "RC"]
[PlyCount "66"]
[EventDate "2019.10.10"]
[EventType "swiss"]
[EventCountry "GBR"]
[SourceTitle "playchess.com"]
[Source "ChessBase"]
[SourceQuality "1"]
[TimeControl "40/6000+30:20/3000+30:900+30"]

1. e4 {[%emt 0:00:00]} c5 {[%emt 0:00:00]} 2. Nf3 {[%emt 0:00:00]} d6 {[%emt 0:00:02]} 3. Bb5+ {[%emt 0:00:00]} Nd7 {[%emt 0:01:09]} 4. d4 {[%emt 0:00:20]} Ngf6 {[%emt 0:00:08]} 5. O-O {[%emt 0:00:06]} cxd4 {[%emt 0:03:13]} 6. Qxd4 {[%emt 0:00:44]} e5 {[%emt 0:00:52]} 7. Qd3 {[%emt 0:00:12]} Be7 {[%emt 0:01:11]} 8. c4 {[%emt 0:09:46]} O-O {[%emt 0:00:53]} 9. Bxd7 {[%emt 0:00:04]} Bxd7 {[%emt 0:01:25]} 10. Nc3 {[%emt 0:00:24]} Be6 {[%emt 0:01:57]} 11. Ng5 {[%emt 0:08:08]} Qc7 {[%emt 0:04:18]} 12. Nxe6 {[%emt 0:03:31]} fxe6 {[%emt 0:00:03]} 13. b3 {[%emt 0:00:22]} Qc6 {[%emt 0:00:42]} 14. Qh3 {[%emt 0:26:45]} d5 {[%emt 0:05:48]} 15. exd5 {[%emt 0:00:22]} exd5 {[%emt 0:00:04]} 16. cxd5 {[%emt 0:00:23]} Nxd5 {[%emt 0:00:06]} 17. Nxd5 {[%emt 0:00:03]} Qxd5 {[%emt 0:00:07]} 18. Be3 {[%emt 0:00:04]} Bc5 {[%emt 0:05:27]} 19. Bxc5 {[%emt 0:01:39]} Qxc5 {[%emt 0:00:02]} 20. Qe6+ {[%emt 0:00:11]} Kh8 {[%emt 0:01:29]} 21. Rac1 {[%emt 0:00:17]} Qa5 {[%emt 0:00:03]} 22. Rc2 {[%emt 0:04:58]} Rae8 {[%emt 0:06:14]} 23. Qd6 {[%emt 0:08:26]} e4 {[%emt 0:00:48]} 24. Qc5 {[%emt 0:00:46]} Qxc5 {[%emt 0:01:10]} 25. Rxc5 {[%emt 0:00:03]} Rd8 {[%emt 0:00:05]} 26. Rc2 {[%emt 0:04:29]} Rd4 {[%emt 0:05:30]} 27. Rfc1 {[%emt 0:11:35]} h6 {[%emt 0:01:23]} 28. Kf1 {[%emt 0:00:10]} Kh7 {[%emt 0:00:03]} 29. Ke2 {[%emt 0:00:25]} Rfd8 {[%emt 0:00:04]} 30. Ke3 {[%emt 0:00:28]} Rd3+ {[%emt 0:00:18]} 31. Kxe4 {[%emt 0:06:06]} R8d4+ {[%emt 0:00:05]} 32. Ke5 {[%emt 0:00:05]} Rd5+ {[%emt 0:00:05]} 33. Ke4 {[%emt 0:00:04]} R5d4+ {[%emt 0:00:04]} 1/2-1/2

[Event "FIDE Chesscom Grand Swiss 2019"]
[Site "Douglas-Isle of Man"]
[Date "2019.10.19"]
[Round "9.10"]
[White "Saduakassova, Dinara"]
[Black "Oparin, Grigoriy"]
[Result "0-1"]
[ECO "E15"]
[WhiteElo "2481"]
[BlackElo "2654"]
[Annotator "RC"]
[PlyCount "68"]
[EventDate "2019.10.10"]
[EventType "swiss"]
[EventCountry "GBR"]
[SourceTitle "playchess.com"]
[Source "ChessBase"]
[SourceQuality "1"]
[TimeControl "40/6000+30:20/3000+30:900+30"]

1. d4 {[%emt 0:00:00]} Nf6 {[%emt 0:00:00]} 2. c4 {[%emt 0:00:00]} e6 {[%emt 0:00:00]} 3. Nf3 {[%emt 0:00:00]} b6 {[%emt 0:00:00]} 4. g3 {[%emt 0:00:00]} Ba6 {[%emt 0:00:00]} 5. Qc2 {[%emt 0:00:26]} d5 {[%emt 0:09:23]} 6. cxd5 {[%emt 0:01:05]} exd5 {[%emt 0:00:30]} 7. Nc3 {[%emt 0:06:00]} c6 {[%emt 0:03:57]} 8. Bg2 {[%emt 0:05:02]} Bb4 {[%emt 0:06:14]} 9. O-O {[%emt 0:02:50]} O-O {[%emt 0:00:10]} 10. Ne5 {[%emt 0:05:21]} Re8 {[%emt 0:06:48]} 11. Bf4 {[%emt 0:03:59]} Bxc3 {[%emt 0:09:42]} 12. bxc3 {[%emt 0:04:31]} Qc8 {[%emt 0:00:43]} 13. c4 {[%emt 0:04:39]} Qe6 {[%emt 0:09:22]} 14. Rfc1 {[%emt 0:11:25]} Nbd7 {[%emt 0:07:54]} 15. cxd5 {[%emt 0:10:11]} cxd5 {[%emt 0:00:06]} 16. Bf3 {[%emt 0:01:18]} Nxe5 {[%emt 0:09:11]} 17. dxe5 {[%emt 0:03:26]} Nd7 {[%emt 0:00:43]} 18. Qd2 {[%emt 0:05:37]} Bc4 {[%emt 0:02:36]} 19. e4 {[%emt 0:07:09]} dxe4 {[%emt 0:03:45]} 20. Bxe4 {[%emt 0:00:26]} Rac8 {[%emt 0:01:17]} 21. Re1 {[%emt 0:08:12]} Nc5 {[%emt 0:01:12]} 22. Bg2 {[%emt 0:04:31]} Red8 {[%emt 0:00:56]} 23. Qc2 {[%emt 0:00:27]} Nd3 {[%emt 0:02:04]} 24. Red1 {[%emt 0:00:16]} Nxf4 {[%emt 0:03:24]} 25. Rxd8+ {[%emt 0:06:24]} Rxd8 {[%emt 0:00:17]} 26. gxf4 {[%emt 0:00:03]} g6 {[%emt 0:01:39]} 27. Rd1 {[%emt 0:06:57]} Rxd1+ {[%emt 0:01:37]} 28. Qxd1 {[%emt 0:00:03]} Bxa2 {[%emt 0:00:13]} 29. Qd8+ {[%emt 0:04:07]} Kg7 {[%emt 0:00:05]} 30. h4 {[%emt 0:05:02]} h5 {[%emt 0:01:10]} 31. Kh2 {[%emt 0:01:31]} Qf5 {[%emt 0:00:23]} 32. Qd4 {[%emt 0:00:04]} Be6 {[%emt 0:00:04]} 33. Kg1 {[%emt 0:02:28]} Qg4 {[%emt 0:01:00]} 34. Kf1 {[%emt 0:01:04]} Qxh4 {[%emt 0:01:35]} 0-1

[Event "FIDE Chesscom Grand Swiss 2019"]
[Site "Douglas-Isle of Man"]
[Date "2019.10.19"]
[Round "9.11"]
[White "Sadhwani, Raunak"]
[Black "Motylev, Alexander"]
[Result "1-0"]
[ECO "A28"]
[WhiteElo "2479"]
[BlackElo "2651"]
[Annotator "ChessBase"]
[PlyCount "73"]
[EventDate "2019.10.10"]
[EventType "swiss"]
[EventCountry "GBR"]
[SourceTitle "playchess.com"]
[Source "ChessBase"]
[SourceQuality "1"]
[TimeControl "40/6000+30:20/3000+30:900+30"]

1. c4 {[%emt 0:00:00]} e5 {[%emt 0:00:00]} 2. Nc3 {[%emt 0:00:00]} Nf6 {[%emt 0:00:00]} 3. Nf3 {[%emt 0:00:00]} Nc6 {[%emt 0:00:00]} 4. e4 {[%emt 0:00:00]} Bb4 {[%emt 0:00:22]} 5. d3 {[%emt 0:00:00]} d6 {[%emt 0:00:10]} 6. h3 {[%emt 0:00:06]} a6 {[%emt 0:03:52]} 7. a3 {[%emt 0:02:16]} Bc5 {[%emt 0:00:40]} 8. g3 {[%emt 0:03:23]} h6 {[%emt 0:12:02]} 9. Bg2 {[%emt 0:00:19]} Be6 {[%emt 0:02:22]} 10. O-O {[%emt 0:08:01]} g5 {[%emt 0:06:56]} 11. Ne1 {[%emt 0:08:46]} Nd4 {[%emt 0:03:58]} 12. Be3 {[%emt 0:02:28]} b5 {[%emt 0:13:08]} 13. cxb5 {[%emt 0:09:09]} Qd7 {[%emt 0:02:31]} 14. Bxd4 {[%emt 0:06:43]} Bxd4 {[%emt 0:00:35]} 15. Nc2 {[%emt 0:04:32]} Bb6 {[%emt 0:17:12]} 16. bxa6 {[%emt 0:10:53]} Bxh3 {[%emt 0:03:21]} 17. Qf3 {[%emt 0:00:57]} Qe6 {[%emt 0:14:27]} 18. d4 {[%emt 0:04:25]} Bg4 {[%emt 0:03:46]} 19. Qd3 {[%emt 0:01:54]} h5 {[%emt 0:01:30]} 20. a4 {[%emt 0:07:19]} h4 {[%emt 0:06:10]} 21. a5 {[%emt 0:00:14]} h3 {[%emt 0:02:18]} 22. Bf3 {[%emt 0:15:31]} h2+ {[%emt 0:03:51]} 23. Kg2 {[%emt 0:03:21]} Bh3+ {[%emt 0:02:20]} 24. Kh1 {[%emt 0:00:05]} Bxf1 {[%emt 0:00:14]} 25. Qxf1 {[%emt 0:00:30]} Ba7 {[%emt 0:02:06]} 26. Nb5 {[%emt 0:08:23]} Qd7 {[%emt 0:02:44]} 27. dxe5 {[%emt 0:02:41]} dxe5 {[%emt 0:02:40]} 28. Rd1 {[%emt 0:01:05]} Qc6 {[%emt 0:01:14]} 29. Rc1 {[%emt 0:02:30]} Nxe4 {[%emt 0:00:52]} 30. Bxe4 {[%emt 0:01:27]} Qxe4+ {[%emt 0:00:28]} 31. f3 {[%emt 0:00:02]} Qa4 {[%emt 0:02:31]} 32. Nxc7+ {[%emt 0:02:07]} Ke7 {[%emt 0:00:01]} 33. Qe2 {[%emt 0:02:18]} Qxa5 {[%emt 0:00:28]} 34. Nb4 {[%emt 0:00:52]} Kf8 {[%emt 0:01:37]} 35. Nxa8 {[%emt 0:00:22]} Kg7 {[%emt 0:00:32]} 36. Nc6 {[%emt 0:00:36]} Qd5 {[%emt 0:00:15]} 37. Nc7 {[%emt 0:00:19]} 1-0

[Event "FIDE Chesscom Grand Swiss 2019"]
[Site "Douglas-Isle of Man"]
[Date "2019.10.19"]
[Round "9.12"]
[White "Papaioannou, Ioannis"]
[Black "Yilmaz, Mustafa"]
[Result "1/2-1/2"]
[ECO "E04"]
[WhiteElo "2645"]
[BlackElo "2595"]
[Annotator "ChessBase"]
[PlyCount "79"]
[EventDate "2019.10.10"]
[EventType "swiss"]
[EventCountry "GBR"]
[SourceTitle "playchess.com"]
[Source "ChessBase"]
[SourceQuality "1"]
[TimeControl "40/6000+30:20/3000+30:900+30"]

1. d4 {[%emt 0:00:00]} Nf6 {[%emt 0:01:15]} 2. c4 {[%emt 0:00:00]} e6 {[%emt 0:00:22]} 3. g3 {[%emt 0:00:00]} d5 {[%emt 0:00:18]} 4. Bg2 {[%emt 0:00:05]} dxc4 {[%emt 0:00:09]} 5. Nf3 {[%emt 0:00:14]} c5 {[%emt 0:00:08]} 6. O-O {[%emt 0:00:18]} Nc6 {[%emt 0:00:04]} 7. dxc5 {[%emt 0:01:00]} Qxd1 {[%emt 0:00:06]} 8. Rxd1 {[%emt 0:00:05]} Bxc5 {[%emt 0:00:05]} 9. Nbd2 {[%emt 0:00:12]} c3 {[%emt 0:00:05]} 10. bxc3 {[%emt 0:00:05]} O-O {[%emt 0:00:12]} 11. Nb3 {[%emt 0:00:24]} Be7 {[%emt 0:00:05]} 12. Nfd4 {[%emt 0:03:06]} Nxd4 {[%emt 0:01:27]} 13. cxd4 {[%emt 0:00:16]} Nd5 {[%emt 0:00:07]} 14. Bd2 {[%emt 0:02:07]} f5 {[%emt 0:01:00]} 15. Na5 {[%emt 0:04:05]} b6 {[%emt 0:04:24]} 16. Nc6 {[%emt 0:01:44]} Bf6 {[%emt 0:00:08]} 17. e3 {[%emt 0:09:38]} Bb7 {[%emt 0:01:44]} 18. Nb4 {[%emt 0:01:03]} Rab8 {[%emt 0:03:50]} 19. a4 {[%emt 0:07:59]} Rfd8 {[%emt 0:03:42]} 20. a5 {[%emt 0:05:36]} Nxb4 {[%emt 0:00:06]} 21. Bxb4 {[%emt 0:00:21]} Bxg2 {[%emt 0:00:21]} 22. Kxg2 {[%emt 0:00:05]} e5 {[%emt 0:00:15]} 23. dxe5 {[%emt 0:10:26]} Bxe5 {[%emt 0:03:49]} 24. Rac1 {[%emt 0:00:26]} Rxd1 {[%emt 0:03:23]} 25. Rxd1 {[%emt 0:00:05]} bxa5 {[%emt 0:00:16]} 26. Bxa5 {[%emt 0:00:27]} a6 {[%emt 0:01:02]} 27. Rd7 {[%emt 0:02:59]} Rb5 {[%emt 0:02:08]} 28. Bd2 {[%emt 0:01:19]} Rb6 {[%emt 0:03:19]} 29. Ra7 {[%emt 0:01:26]} h5 {[%emt 0:07:23]} 30. Ba5 {[%emt 0:02:07]} Rc6 {[%emt 0:02:24]} 31. h3 {[%emt 0:02:33]} Rc4 {[%emt 0:05:18]} 32. Bd8 {[%emt 0:02:57]} Ra4 {[%emt 0:10:28]} 33. Rd7 {[%emt 0:12:47]} Rb4 {[%emt 0:07:55]} 34. Ra7 {[%emt 0:04:36]} Ra4 {[%emt 0:01:43]} 35. Kf3 {[%emt 0:00:29]} Kh7 {[%emt 0:03:32]} 36. Bb6 {[%emt 0:07:25]} h4 {[%emt 0:03:12]} 37. Bd4 {[%emt 0:03:34]} Bxd4 {[%emt 0:00:20]} 38. exd4 {[%emt 0:00:04]} hxg3 {[%emt 0:00:47]} 39. fxg3 {[%emt 0:00:05]} Rxd4 {[%emt 0:01:00]} 40. Rxa6 {[%emt 0:00:05]} 1/2-1/2

[Event "FIDE Chesscom Grand Swiss 2019"]
[Site "Douglas-Isle of Man"]
[Date "2019.10.19"]
[Round "9.13"]
[White "Nihal Sarin"]
[Black "Chigaev, Maksim"]
[Result "0-1"]
[ECO "D85"]
[WhiteElo "2610"]
[BlackElo "2644"]
[Annotator "ChessBase"]
[PlyCount "126"]
[EventDate "2019.10.10"]
[EventType "swiss"]
[EventCountry "GBR"]
[SourceTitle "playchess.com"]
[Source "ChessBase"]
[SourceQuality "1"]
[TimeControl "40/6000+30:20/3000+30:900+30"]

1. d4 {[%emt 0:02:50]} Nf6 {[%emt 0:00:00]} 2. c4 {[%emt 0:00:04]} g6 {[%emt 0:00:00]} 3. Nc3 {[%emt 0:00:04]} d5 {[%emt 0:00:00]} 4. cxd5 {[%emt 0:03:09]} Nxd5 {[%emt 0:00:07]} 5. e4 {[%emt 0:00:06]} Nxc3 {[%emt 0:00:04]} 6. bxc3 {[%emt 0:00:05]} Bg7 {[%emt 0:00:05]} 7. Qa4+ {[%emt 0:00:20]} Nd7 {[%emt 0:00:06]} 8. Nf3 {[%emt 0:00:18]} O-O {[%emt 0:00:08]} 9. Be2 {[%emt 0:00:02]} Nb6 {[%emt 0:00:06]} 10. Qa3 {[%emt 0:03:52]} Qd6 {[%emt 0:01:11]} 11. O-O {[%emt 0:02:36]} Be6 {[%emt 0:00:59]} 12. Re1 {[%emt 0:13:54]} Qxa3 {[%emt 0:01:40]} 13. Bxa3 {[%emt 0:00:20]} Rfe8 {[%emt 0:00:09]} 14. Nd2 {[%emt 0:22:51]} c6 {[%emt 0:06:15]} 15. Nb3 {[%emt 0:20:39]} Bxb3 {[%emt 0:21:53]} 16. axb3 {[%emt 0:00:21]} e5 {[%emt 0:00:06]} 17. dxe5 {[%emt 0:13:31]} Bxe5 {[%emt 0:00:57]} 18. Rac1 {[%emt 0:04:19]} Bf4 {[%emt 0:04:20]} 19. Rcd1 {[%emt 0:00:43]} Rxe4 {[%emt 0:00:42]} 20. Bf3 {[%emt 0:01:01]} Rxe1+ {[%emt 0:01:37]} 21. Rxe1 {[%emt 0:00:01]} Bh6 {[%emt 0:00:37]} 22. Rd1 {[%emt 0:03:30]} Bf8 {[%emt 0:27:27]} 23. Bc1 {[%emt 0:00:16]} Bg7 {[%emt 0:01:36]} 24. c4 {[%emt 0:08:27]} a5 {[%emt 0:00:36]} 25. c5 {[%emt 0:01:47]} Nd5 {[%emt 0:01:35]} 26. Bxd5 {[%emt 0:00:55]} cxd5 {[%emt 0:00:06]} 27. Rxd5 {[%emt 0:00:03]} a4 {[%emt 0:01:30]} 28. bxa4 {[%emt 0:00:08]} Rxa4 {[%emt 0:00:12]} 29. Rd8+ {[%emt 0:05:31]} Bf8 {[%emt 0:00:06]} 30. Bb2 {[%emt 0:00:08]} Rb4 {[%emt 0:00:36]} 31. Rd2 {[%emt 0:00:10]} f5 {[%emt 0:00:35]} 32. g3 {[%emt 0:00:30]} Bxc5 {[%emt 0:00:30]} 33. Kg2 {[%emt 0:00:01]} Kf7 {[%emt 0:01:51]} 34. h4 {[%emt 0:00:58]} b6 {[%emt 0:00:24]} 35. Be5 {[%emt 0:00:26]} Ra4 {[%emt 0:01:47]} 36. f4 {[%emt 0:01:34]} Ra7 {[%emt 0:00:12]} 37. Rd8 {[%emt 0:00:49]} Rb7 {[%emt 0:01:01]} 38. Kf3 {[%emt 0:00:38]} Bf8 {[%emt 0:00:52]} 39. g4 {[%emt 0:01:04]} b5 {[%emt 0:09:17]} 40. h5 {[%emt 0:00:44]} fxg4+ {[%emt 0:02:18]} 41. Kxg4 {[%emt 0:50:32]} gxh5+ {[%emt 0:51:14]} 42. Kxh5 {[%emt 0:00:00]} b4 {[%emt 0:00:00]} 43. Kg4 {[%emt 0:00:00]} b3 {[%emt 0:00:00]} 44. Bb2 {[%emt 0:00:00]} Bg7 {[%emt 0:00:00]} 45. Bc1 {[%emt 0:00:00]} b2 {[%emt 0:00:00]} 46. Bxb2 {[%emt 0:00:00]} Bxb2 {[%emt 0:00:00]} 47. Rd5 {[%emt 0:00:00]} Bf6 {[%emt 0:00:00]} 48. Ra5 {[%emt 0:00:00]} Kg6 {[%emt 0:00:00]} 49. Rc5 {[%emt 0:00:00]} Rb1 {[%emt 0:00:00]} 50. f5+ {[%emt 0:00:00]} Kh6 {[%emt 0:00:00]} 51. Rc7 {[%emt 0:00:00]} Rb4+ {[%emt 0:00:00]} 52. Kf3 {[%emt 0:00:00]} Rh4 {[%emt 0:00:00]} 53. Rf7 {[%emt 0:00:00]} Kg5 {[%emt 0:00:00]} 54. Kg3 {[%emt 0:00:00]} h5 {[%emt 0:00:00]} 55. Ra7 {[%emt 0:00:00]} Be5+ {[%emt 0:00:00]} 56. Kg2 {[%emt 0:00:00]} Kxf5 {[%emt 0:00:00]} 57. Ra5 {[%emt 0:00:00]} Rh2+ {[%emt 0:00:00]} 58. Kg1 {[%emt 0:00:00]} Rd2 {[%emt 0:00:00]} 59. Ra4 {[%emt 0:00:00]} Bf4 {[%emt 0:00:00]} 60. Ra3 {[%emt 0:00:00]} Kg4 {[%emt 0:00:00]} 61. Kh1 {[%emt 0:00:00]} Be5 {[%emt 0:00:00]} 62. Rb3 {[%emt 0:00:00]} h4 {[%emt 0:00:00]} 63. Rb1 {[%emt 0:04:14]} Kh3 {[%emt 0:00:00]} 0-1

[Event "FIDE Chesscom Grand Swiss 2019"]
[Site "Douglas-Isle of Man"]
[Date "2019.10.19"]
[Round "9.14"]
[White "Bluebaum, Matthias"]
[Black "Puranik, Abhimanyu"]
[Result "1/2-1/2"]
[ECO "D87"]
[WhiteElo "2643"]
[BlackElo "2571"]
[Annotator "ChessBase"]
[PlyCount "91"]
[EventDate "2019.10.10"]
[EventType "swiss"]
[EventCountry "GBR"]
[SourceTitle "playchess.com"]
[Source "ChessBase"]
[SourceQuality "1"]
[TimeControl "40/6000+30:20/3000+30:900+30"]

1. d4 {[%emt 0:00:00]} Nf6 {[%emt 0:00:00]} 2. c4 {[%emt 0:00:00]} g6 {[%emt 0:00:00]} 3. Nc3 {[%emt 0:00:00]} d5 {[%emt 0:00:01]} 4. cxd5 {[%emt 0:00:01]} Nxd5 {[%emt 0:00:03]} 5. e4 {[%emt 0:00:05]} Nxc3 {[%emt 0:00:12]} 6. bxc3 {[%emt 0:00:04]} Bg7 {[%emt 0:00:08]} 7. Bc4 {[%emt 0:00:11]} c5 {[%emt 0:00:23]} 8. Ne2 {[%emt 0:00:04]} Nc6 {[%emt 0:00:27]} 9. Be3 {[%emt 0:00:05]} O-O {[%emt 0:00:10]} 10. Rc1 {[%emt 0:00:03]} Na5 {[%emt 0:02:03]} 11. Bd3 {[%emt 0:00:51]} b6 {[%emt 0:01:11]} 12. O-O {[%emt 0:02:01]} Bb7 {[%emt 0:01:20]} 13. Qd2 {[%emt 0:06:43]} Rc8 {[%emt 0:01:16]} 14. d5 {[%emt 0:04:14]} e6 {[%emt 0:12:21]} 15. c4 {[%emt 0:06:08]} Qd7 {[%emt 0:05:06]} 16. Bh6 {[%emt 0:06:22]} Bxh6 {[%emt 0:10:09]} 17. Qxh6 {[%emt 0:00:03]} b5 {[%emt 0:05:09]} 18. Rfd1 {[%emt 0:09:32]} Nxc4 {[%emt 0:02:42]} 19. Bxc4 {[%emt 0:00:35]} bxc4 {[%emt 0:00:09]} 20. Nc3 {[%emt 0:02:12]} exd5 {[%emt 0:14:12]} 21. exd5 {[%emt 0:00:50]} Qf5 {[%emt 0:01:13]} 22. Qh4 {[%emt 0:05:00]} Rfe8 {[%emt 0:10:08]} 23. Qxc4 {[%emt 0:02:17]} Re5 {[%emt 0:08:48]} 24. h3 {[%emt 0:09:24]} Qd7 {[%emt 0:08:03]} 25. Rb1 {[%emt 0:11:49]} Ba8 {[%emt 0:06:29]} 26. Rb2 {[%emt 0:03:46]} Qe7 {[%emt 0:04:51]} 27. d6 {[%emt 0:06:09]} Qd7 {[%emt 0:05:04]} 28. Qf4 {[%emt 0:01:03]} Re6 {[%emt 0:04:00]} 29. h4 {[%emt 0:03:28]} h5 {[%emt 0:00:50]} 30. Kh2 {[%emt 0:04:25]} Rce8 {[%emt 0:01:57]} 31. f3 {[%emt 0:00:27]} Bc6 {[%emt 0:01:07]} 32. Rbd2 {[%emt 0:03:11]} Re5 {[%emt 0:01:54]} 33. Rd3 {[%emt 0:06:10]} Rf5 {[%emt 0:01:14]} 34. Qh6 {[%emt 0:01:27]} Rfe5 {[%emt 0:00:59]} 35. R1d2 {[%emt 0:03:02]} R5e6 {[%emt 0:01:36]} 36. Qf4 {[%emt 0:00:54]} Re5 {[%emt 0:00:22]} 37. Nd1 {[%emt 0:05:22]} Rf5 {[%emt 0:01:07]} 38. Qh6 {[%emt 0:01:03]} Rfe5 {[%emt 0:00:50]} 39. Nc3 {[%emt 0:03:15]} R5e6 {[%emt 0:05:03]} 40. Qf4 {[%emt 0:04:35]} Re5 {[%emt 0:00:00]} 41. Nd5 {[%emt 0:06:07]} Bxd5 {[%emt 0:00:00]} 42. Rxd5 {[%emt 0:00:01]} Rxd5 {[%emt 0:00:00]} 43. Rxd5 {[%emt 0:02:51]} Re6 {[%emt 0:06:00]} 44. Qd2 {[%emt 0:04:36]} c4 {[%emt 0:01:37]} 45. Qd4 {[%emt 0:04:25]} c3 {[%emt 0:01:31]} 46. Qxc3 {[%emt 0:01:37]} 1/2-1/2

[Event "FIDE Chesscom Grand Swiss 2019"]
[Site "Douglas-Isle of Man"]
[Date "2019.10.19"]
[Round "9.15"]
[White "Lu, Shanglei"]
[Black "Kuzubov, Yuriy"]
[Result "0-1"]
[ECO "B11"]
[WhiteElo "2602"]
[BlackElo "2636"]
[Annotator "ChessBase"]
[PlyCount "68"]
[EventDate "2019.10.10"]
[EventType "swiss"]
[EventCountry "GBR"]
[SourceTitle "playchess.com"]
[Source "ChessBase"]
[SourceQuality "1"]
[TimeControl "40/6000+30:20/3000+30:900+30"]

1. e4 {[%emt 0:00:00]} c6 {[%emt 0:00:00]} 2. Nc3 {[%emt 0:00:21]} d5 {[%emt 0:00:00]} 3. Nf3 {[%emt 0:00:04]} Bg4 {[%emt 0:00:00]} 4. h3 {[%emt 0:00:04]} Bxf3 {[%emt 0:00:11]} 5. Qxf3 {[%emt 0:00:08]} Nf6 {[%emt 0:00:07]} 6. d3 {[%emt 0:02:27]} e6 {[%emt 0:00:18]} 7. Qg3 {[%emt 0:00:04]} d4 {[%emt 0:19:26]} 8. Nd1 {[%emt 0:10:02]} c5 {[%emt 0:04:19]} 9. Be2 {[%emt 0:00:21]} Nc6 {[%emt 0:00:07]} 10. O-O {[%emt 0:00:10]} h5 {[%emt 0:02:15]} 11. f4 {[%emt 0:16:40]} h4 {[%emt 0:00:42]} 12. Qe1 {[%emt 0:01:17]} Be7 {[%emt 0:02:28]} 13. Nf2 {[%emt 0:04:15]} e5 {[%emt 0:04:41]} 14. c4 {[%emt 0:10:44]} exf4 {[%emt 0:20:08]} 15. Bxf4 {[%emt 0:01:42]} Bd6 {[%emt 0:05:53]} 16. Bg5 {[%emt 0:07:22]} Bg3 {[%emt 0:03:32]} 17. b4 {[%emt 0:02:21]} Qd6 {[%emt 0:07:54]} 18. bxc5 {[%emt 0:09:28]} Qe5 {[%emt 0:00:10]} 19. Qc1 {[%emt 0:06:50]} Nd7 {[%emt 0:04:44]} 20. Ng4 {[%emt 0:01:10]} Qc7 {[%emt 0:00:33]} 21. Rf5 {[%emt 0:05:15]} f6 {[%emt 0:03:36]} 22. Rb1 {[%emt 0:11:24]} Ne7 {[%emt 0:06:19]} 23. Bf4 {[%emt 0:00:02]} Bxf4 {[%emt 0:00:32]} 24. Rxf4 {[%emt 0:00:06]} Nxc5 {[%emt 0:01:02]} 25. e5 {[%emt 0:02:50]} f5 {[%emt 0:04:06]} 26. Nf6+ {[%emt 0:00:03]} gxf6 {[%emt 0:05:05]} 27. exf6 {[%emt 0:00:03]} Qe5 {[%emt 0:02:08]} 28. Qa3 {[%emt 0:10:40]} Rc8 {[%emt 0:03:17]} 29. Rbf1 {[%emt 0:04:53]} Qxe2 {[%emt 0:02:24]} 30. fxe7 {[%emt 0:00:27]} Rg8 {[%emt 0:00:46]} 31. R1f2 {[%emt 0:01:24]} Qe1+ {[%emt 0:01:08]} 32. Kh2 {[%emt 0:00:29]} Qe5 {[%emt 0:00:24]} 33. Kg1 {[%emt 0:01:11]} Rg5 {[%emt 0:01:04]} 34. Kf1 {[%emt 0:02:07]} Rc7 {[%emt 0:01:11]} 0-1